lending/lending_fUSD_20260124
["ID","MTS","AMOUNT","RATE_DAILY","PERIOD"]
[403186653,1769256645413,-1000.0,0.000177,2]
[403186655,1769256645422,-594.87,0.00017709,2]
[403186656,1769256645431,-714.8,0.00017724,2]
[403186657,1769256645441,-150.0,0.00017739,2]
[403186658,1769256645450,-252.37998978,0.0001774,2]
[403186659,1769256645459,-341.4708,0.0001774,2]
[403186660,1769256645469,-1000.0,0.00017747,2]
[403186661,1769256645478,-1000.0,0.00017752,2]
[403186662,1769256645487,-1000.0,0.00017761,2]
[403186663,1769256645496,-1000.0,0.00017767,2]
[403186664,1769256645507,-165.57934007,0.00017775,2]
[403186665,1769256645516,-1000.0,0.00017792,2]
[403186666,1769256645525,-150.0,0.000178,2]
[403186667,1769256645535,-169.59844908,0.00017804,2]
[403186668,1769256645544,-150.0,0.00017808,2]
[403186669,1769256645553,-1000.0,0.00017808,2]
[403186670,1769256645562,-1000.0,0.0001781,2]
[403186671,1769256645571,-1000.0,0.00017813,2]
[403186672,1769256645581,-714.8,0.00017816,2]
[403186673,1769256645590,-231.38369303,0.0001782,2]
[403186674,1769256645599,-150.0,0.00017827,2]
[403186675,1769256645608,-216.92,0.00017834,2]
[403186676,1769256645617,-158.81404097,0.00017838,2]
[403186677,1769256645627,-251.98,0.00017849,2]
[403186678,1769256645636,-1000.0,0.00017851,2]
[403186679,1769256645646,-386.0,0.00017852,2]
[403186680,1769256645655,-200.0,0.00017856,2]
[403186681,1769256645664,-150.0,0.00017863,2]
[403186682,1769256645674,-1000.0,0.00017864,2]
[403186683,1769256645683,-386.0,0.00017868,2]
[403186684,1769256645693,-1000.0,0.00017869,2]
[403186685,1769256645702,-500.0,0.00017873,2]
[403186686,1769256645712,-25000.0,0.00017874,3]
[403186687,1769256645721,-1000.0,0.00017875,2]
[403186688,1769256645731,-25000.0,0.00017882,3]
[403186689,1769256645741,-1000.0,0.00017885,2]
[403186690,1769256645751,-359.76179104,0.00017886,2]
[403186691,1769256645764,-1000.0,0.00017888,2]
[403186692,1769256645774,-500.0,0.0001789,2]
[403186693,1769256645783,-150.0,0.00017891,2]
[403186694,1769256645793,-25000.0,0.00017891,3]
[403186695,1769256645803,-25000.0,0.00017891,3]
[403186696,1769256645812,-150.0,0.00017898,2]
[403186697,1769256645822,-200.0,0.00017898,2]
[403186698,1769256645831,-25000.0,0.000179,3]
[403186699,1769256645841,-25000.0,0.000179,3]
[403186700,1769256645851,-274.11896161,0.000179,2]
[403186701,1769256645861,-25000.0,0.000179,3]
[403186702,1769256645870,-3764.14755643,0.000179,2]
[403186703,1769256645880,-165.57934006,0.000179,2]
[403186704,1769256645889,-8798.70850594,0.000179,2]
[403186705,1769256645899,-279.3393115,0.000179,2]
[403186706,1769256645909,-10031.62268467,0.000179,2]
[403186707,1769256645920,-1227.1301389,0.000179,2]
[403186708,1769256645930,-190.80620809,0.000179,3]
[403186709,1769256645939,-6670.74257634,0.000179,2]
[403186710,1769256645949,-714.8,0.00017908,2]
[403186711,1769256645958,-150.0,0.0001791,2]
[403186714,1769256646150,-150.0,0.00017918,2]
[403186715,1769256646189,-1000.0,0.00017927,2]
[403186716,1769256646199,-280.29,0.0001793,2]
[403186717,1769256646208,-1000.0,0.00017937,2]
[403186718,1769256646219,-386.0,0.00017953,2]
[403186719,1769256646228,-200.0,0.00017965,3]
[403186720,1769256646238,-5800.0,0.00017966,2]
[403186721,1769256646248,-1000.0,0.00017968,2]
[403186722,1769256646259,-1000.0,0.00017968,2]
[403186723,1769256646268,-1000.0,0.00017969,2]
[403186724,1769256646278,-150.0,0.00017972,2]
[403186725,1769256646287,-612.98031238,0.00017973,2]
[403186726,1769256646296,-500.0,0.00017973,2]
[403186727,1769256646306,-162.86883444,0.00017973,2]
[403186728,1769256646316,-501.22625187,0.00017973,2]
[403186729,1769256646326,-500.0,0.00017973,2]
[403186730,1769256646336,-500.0,0.00017973,2]
[403186731,1769256646346,-500.0,0.00017973,2]
[403186732,1769256646357,-500.0,0.00017973,2]
[403186733,1769256646368,-150.0,0.00017973,2]
[403186734,1769256646379,-500.0,0.00017973,2]
[403186735,1769256646388,-500.0,0.00017973,2]
[403186736,1769256646398,-374.80331045,0.00017973,2]
[403186737,1769256646407,-333.14308792,0.00017973,2]
[403186738,1769256646417,-199.93008886,0.00017973,2]
[403186739,1769256646427,-500.0,0.00017973,2]
[403186740,1769256646437,-500.0,0.00017973,2]
[403186741,1769256646447,-483.63417721,0.00017973,2]
[403186742,1769256646457,-500.0,0.00017973,2]
[403186743,1769256646467,-500.0,0.00017973,2]
[403186744,1769256646476,-300.0,0.00017973,2]
[403186745,1769256646486,-500.0,0.00017973,2]
[403186746,1769256646496,-500.0,0.00017973,2]
[403186747,1769256646505,-500.0,0.00017973,2]
[403186748,1769256646515,-500.0,0.00017973,2]
[403186749,1769256646524,-160.95253726,0.00017973,2]
[403186750,1769256646534,-159.93585942,0.00017973,2]
[403186751,1769256646543,-160.03318119,0.00017973,2]
[403186752,1769256646553,-500.0,0.00017973,2]
[403186753,1769256646563,-500.0,0.00017973,2]
[403186754,1769256646573,-500.0,0.00017973,2]
[403186755,1769256646582,-500.0,0.00017973,2]
[403186756,1769256646592,-500.0,0.00017973,2]
[403186757,1769256646601,-500.0,0.00017973,2]
[403186758,1769256646611,-178.05953076,0.00017973,2]
[403186759,1769256646620,-500.0,0.00017973,2]
[403186760,1769256646630,-500.0,0.00017973,2]
[403186761,1769256646639,-501.12189879,0.00017973,2]
[403186762,1769256646649,-500.0,0.00017973,2]
[403186763,1769256646658,-500.0,0.00017973,2]
[403186764,1769256646669,-500.0,0.00017973,2]
[403186765,1769256646679,-500.0,0.00017973,2]
[403186766,1769256646688,-500.0,0.00017973,2]
[403186767,1769256646703,-501.00015467,0.00017973,2]
[403186768,1769256646713,-500.0,0.00017973,2]
[403186769,1769256646723,-500.0,0.00017973,2]
[403186770,1769256646732,-500.0,0.00017973,2]
[403186771,1769256646741,-500.0,0.00017973,2]
[403186772,1769256646751,-574.71375417,0.00017973,2]
[403186773,1769256646766,-160.03828545,0.00017973,2]
[403186774,1769256646776,-500.0,0.00017973,2]
[403186775,1769256646786,-157.31967869,0.00017973,2]
[403186776,1769256646795,-500.0,0.00017973,2]
[403186777,1769256646806,-500.0,0.00017973,2]
[403186778,1769256646815,-500.0,0.00017973,2]
[403186779,1769256646825,-500.0,0.00017973,2]
[403186780,1769256646836,-500.0,0.00017973,2]
[403186781,1769256646845,-503.53750064,0.00017973,2]
[403186782,1769256646855,-368.01966019,0.00017973,2]
[403186783,1769256646864,-500.0,0.00017973,2]
[403186784,1769256646874,-410.92119628,0.00017973,2]
[403186785,1769256646883,-500.0,0.00017973,2]
[403186786,1769256646893,-150.0,0.00017973,2]
[403186787,1769256646905,-5800.0,0.00017975,2]
[403186788,1769256646914,-547.55,0.0001798,2]
[403186789,1769256646924,-500.0,0.00017982,2]
[403186790,1769256646933,-5800.0,0.00017983,2]
[403186791,1769256646943,-150.0,0.00017985,2]
[403186792,1769256646952,-153.7074367,0.00017986,2]
[403186793,1769256646962,-500.0,0.00017989,2]
[403186794,1769256646971,-214.96623226,0.0001799,2]
[403186795,1769256646981,-214.96623226,0.0001799,2]
[403186796,1769256646990,-150.0,0.00017991,2]
[403186797,1769256646999,-200.0,0.00017991,2]
[403186798,1769256647009,-5800.0,0.00017992,2]
[403186799,1769256647018,-151.0,0.00017997,2]
[403186800,1769256647027,-249.48172896,0.00017999,2]
[403186801,1769256647037,-500.0,0.00017999,2]
[403186802,1769256647046,-500.0,0.00017999,2]
[403186803,1769256647055,-500.0,0.00017999,2]
[403186804,1769256647064,-500.0,0.00017999,2]
[403186805,1769256647075,-500.0,0.00017999,2]
[403186806,1769256647087,-500.0,0.00017999,2]
[403186807,1769256647097,-500.0,0.00017999,2]
[403186808,1769256647108,-500.0,0.00017999,2]
[403186809,1769256647118,-500.0,0.00017999,2]
[403186810,1769256647127,-500.0,0.00017999,2]
[403186811,1769256647136,-500.0,0.00017999,2]
[403186812,1769256647146,-416.79786279,0.00017999,2]
[403186813,1769256647155,-1008.959,0.00017999,2]
[403186814,1769256647164,-300.0,0.00017999,2]
[403186815,1769256647173,-300.0,0.00017999,2]
[403186816,1769256647182,-300.0,0.00017999,2]
[403186817,1769256647191,-500.0,0.00017999,2]
[403186818,1769256647201,-500.0,0.00017999,2]
[403186819,1769256647210,-500.0,0.00017999,2]
[403186820,1769256647220,-500.0,0.00017999,2]
[403186821,1769256647230,-500.0,0.00017999,2]
[403186822,1769256647240,-500.0,0.00017999,2]
[403186823,1769256647250,-500.0,0.00017999,2]
[403186824,1769256647260,-500.0,0.00017999,2]
[403186825,1769256647270,-311.60217601,0.00017999,2]
[403186826,1769256647281,-300.0,0.00017999,2]
[403186827,1769256647293,-300.0,0.00017999,2]
[403186828,1769256647302,-300.0,0.00017999,2]
[403186829,1769256647313,-300.0,0.00017999,2]
[403186830,1769256647333,-300.0,0.00017999,2]
[403186831,1769256647345,-300.0,0.00017999,2]
[403186832,1769256647355,-150.0,0.00017999,2]
[403186833,1769256647365,-796696.4342267,0.00018,2]
[403186834,1769256647374,-2712092.34318806,0.00018,2]
[403186835,1769256647383,-800.37170123,0.00018,2]
[403186836,1769256647392,-419.73041029,0.00018,2]
[403186837,1769256647402,-419.73041029,0.00018,2]
[403186838,1769256647411,-419.73041028,0.00018,2]
[403186839,1769256647420,-419.73041028,0.00018,2]
[403186840,1769256647429,-419.73041028,0.00018,2]
[403186841,1769256647438,-419.73041028,0.00018,2]
[403186842,1769256647447,-419.73041028,0.00018,2]
[403186843,1769256647456,-419.73041028,0.00018,2]
[403186844,1769256647466,-419.73041028,0.00018,2]
[403186845,1769256647475,-419.73041028,0.00018,2]
[403186846,1769256647484,-419.73041028,0.00018,2]
[403186847,1769256647495,-419.73041028,0.00018,2]
[403186848,1769256647505,-419.73041028,0.00018,2]
[403186849,1769256647515,-419.73041028,0.00018,2]
[403186850,1769256647525,-419.73041028,0.00018,2]
[403186851,1769256647534,-419.73041028,0.00018,2]
[403186852,1769256647543,-419.73041028,0.00018,2]
[403186853,1769256647552,-419.73041028,0.00018,2]
[403186854,1769256647561,-419.73041028,0.00018,2]
[403186855,1769256647570,-419.73041028,0.00018,2]
[403186856,1769256647580,-1000.0,0.00018,2]
[403186857,1769256647589,-1000.0,0.00018,2]
[403186858,1769256647598,-1000.0,0.00018,2]
[403186859,1769256647607,-1000.0,0.00018,2]
[403186860,1769256647617,-1000.0,0.00018,2]
[403186861,1769256647626,-1000.0,0.00018,2]
[403186862,1769256647635,-308.48884427,0.00018,2]
[403186863,1769256647644,-356.69261,0.00018,2]
[403186864,1769256647654,-150.0,0.00018,2]
[403186865,1769256647663,-150.0,0.00018,2]
[403186866,1769256647672,-338.37879492,0.00018,2]
[403186867,1769256647682,-150.0,0.00018,2]
[403186868,1769256647692,-1303.73725579,0.00018,2]
[403186869,1769256647702,-6052.4539225,0.00018,2]
[403186870,1769256647713,-500.0,0.00018,2]
[403186871,1769256647725,-500.0,0.00018,2]
[403186872,1769256647736,-500.0,0.00018,2]
[403186873,1769256647745,-500.0,0.00018,2]
[403186874,1769256647757,-500.0,0.00018,2]
[403186875,1769256647769,-500.0,0.00018,2]
[403186876,1769256647779,-500.0,0.00018,2]
[403186877,1769256647789,-294.84321578,0.00018,2]
[403186878,1769256647798,-5800.0,0.00018,2]
[403186879,1769256647807,-3167418.18624374,0.00018,2]
[403186880,1769256648329,-18621.99136545,0.00018,2]
[403186881,1769256648859,-105.36939945,0.00013779,2]
[403186882,1769256648871,-45.63060055,0.00013779,2]
[403186883,1769256648880,-375.47383458,0.00013779,2]
[403186884,1769256648891,-674.06,0.00017609,2]
[403186885,1769256648900,-2339.11192687,0.00018,2]
[403186886,1769256648911,-1262.67976565,0.00018,2]
[403186887,1769256648968,458.26706625,0.00011678,2]
[403186888,1769256648990,110.20819235,0.00011678,2]
[403186889,1769256649199,-4107.46109804,0.00012369,2]
[403186890,1769256649208,-567.0,0.00017188,2]
[403186891,1769256649218,-482653.03472034,0.00018,2]
[403186892,1769256692952,10000.01,0.00011678,2]
[403186893,1769256692978,10000.01,0.00011678,2]
[403186894,1769256693004,10000.01,0.00011678,2]
[403186895,1769256693030,10000.01,0.00011678,2]
[403186896,1769256693055,10000.01,0.00011678,2]
[403186897,1769256693079,10000.01,0.00011678,2]
[403186898,1769256693108,10000.01,0.00011678,2]
[403186899,1769256693133,10000.01,0.00011678,2]
[403186900,1769256693159,10000.01,0.00011678,2]
[403186901,1769256762077,186.22620768,0.00011578,2]
[403186902,1769256786567,598.21454874,0.00011578,2]
[403186903,1769256792368,2639.6125518,0.00011578,2]
[403186904,1769256837785,339.24388741,0.00011677,2]
[403186905,1769256837869,500.0,0.00011677,2]
[403186906,1769256840420,218.6294122,0.00011677,2]
[403186907,1769256840479,437.89130065,0.00011677,2]
[403186908,1769256840517,500.0,0.00011677,2]
[403186909,1769256840589,520.30395606,0.00011677,2]
[403186910,1769256848592,1675.87008665,0.00011677,2]
[403186911,1769256848640,1675.87008665,0.00011677,2]
[403186912,1769256848697,708.14796216,0.00011677,2]
[403186913,1769256848724,967.72212449,0.00011677,2]
[403186914,1769256848771,1675.87008665,0.00011677,2]
[403186915,1769256848827,1675.87008665,0.00011677,2]
[403186916,1769256848872,1675.87008665,0.00011677,2]
[403186917,1769256848922,1675.87008665,0.00011677,2]
[403186918,1769256848968,1675.87008665,0.00011677,2]
[403186919,1769256849026,652.93744226,0.00011677,2]
[403186920,1769256912346,-1200.0,0.00011676,2]
[403186921,1769256912375,-300.0,0.00011676,2]
[403186922,1769256912407,-1022.93264439,0.00011677,2]
[403186923,1769256912441,-1675.87008665,0.00011677,2]
[403186924,1769256912686,-1675.87008665,0.00011677,2]
[403186925,1769256912721,-1675.87008665,0.00011677,2]
[403186926,1769256912778,-1620.65956675,0.00011677,2]
[403186927,1769256912934,-55.2105199,0.00011677,2]
[403186928,1769256912969,-1675.87008665,0.00011677,2]
[403186929,1769256913003,-1675.87008665,0.00011677,2]
[403186930,1769256913051,-1510.23852695,0.00011677,2]
[403186931,1769256915674,-813.663181,0.00011617,2]
[403186932,1769256915709,-165.6315597,0.00011677,2]
[403186933,1769256915742,-1675.87008665,0.00011677,2]
[403186934,1769256915776,-1675.87008665,0.00011677,2]
[403186935,1769256915838,-1675.87008665,0.00011677,2]
[403186936,1769256915873,-1675.87008665,0.00011677,2]
[403186937,1769256915911,-1620.65956675,0.00011677,2]
[403186938,1769256921354,-55.2105199,0.00011677,2]
[403186939,1769256921388,-1675.87008665,0.00011677,2]
[403186940,1769256921420,-1675.87008665,0.00011677,2]
[403186941,1769256921453,-1510.23852695,0.00011677,2]
[403186942,1769256921588,-165.6315597,0.00011677,2]
[403186943,1769256921621,-1675.87008665,0.00011677,2]
[403186944,1769256921654,-1675.87008665,0.00011677,2]
[403186945,1769256921685,-1289.39644735,0.00011677,2]
[403186946,1769256924475,-386.4736393,0.00011677,2]
[403186947,1769256924506,-1675.87008665,0.00011677,2]
[403186948,1769256924538,-1675.87008665,0.00011677,2]
[403186949,1769256924571,-847.71228815,0.00011677,2]
[403186950,1769256924967,-828.1577985,0.00011677,2]
[403186951,1769256925003,-1675.87008665,0.00011677,2]
[403186952,1769256925038,-1675.87008665,0.00011677,2]
[403186953,1769256925092,-1675.87008665,0.00011677,2]
[403186954,1769256925127,-1675.87008665,0.00011677,2]
[403186955,1769256925160,-1620.65956675,0.00011677,2]
[403186956,1769257158608,-227.744494,0.00011519,2]
[403186957,1769257158638,-300.0,0.00011577,2]
[403186958,1769257158665,-1200.0,0.00011577,2]
[403186959,1769257158693,-300.0,0.00011577,2]
[403186960,1769257158721,-155.41325982,0.00011578,2]
[403186961,1769257158749,-12.49281987,0.00011578,2]
[403186962,1769257158932,-4391.30114738,0.00011578,2]
[403186963,1769257159047,-1217.40770524,0.00011578,2]
[403186964,1769257159075,-664.00352396,0.00011578,2]
[403186965,1769257159103,-300.0,0.00011602,2]
[403186966,1769257159132,-250.0,0.00011627,2]
[403186967,1769257159159,-250.0,0.00011657,2]
[403186968,1769257160743,-176.3635118,0.00011664,2]
[403186969,1769257160765,-132.84864258,0.00011664,2]
[403186970,1769257162412,-161.95317261,0.00011664,2]
[403186971,1769257163007,309.2122,0.00011578,2]
[403186972,1769257164559,-170.56030923,0.00011664,2]
[403186973,1769257167772,-34.63787558,0.00011664,2]
[403186974,1769257167795,-123.95473499,0.00011664,2]
[403186975,1769257169236,-113.51598619,0.00011664,2]
[403186976,1769257169258,-43.38352827,0.00011664,2]
[403186977,1769257171660,-196.2213971,0.00011664,2]
[403186978,1769257177460,652.94041851,0.00011564,2]
[403186979,1769257180998,3675.03492309,0.00011578,2]
[403186980,1769257181020,825.80716612,0.00011578,2]
[403186981,1769257185875,-107.97521513,0.00011664,2]
[403186982,1769257185901,-153.04058854,0.00011664,2]
[403186983,1769257185926,-78.23984341,0.00011664,2]
[403186984,1769257187274,-216.85110539,0.00011664,2]
[403186985,1769257188771,-203.26083212,0.00011664,2]
[403186986,1769257188794,-33.62573538,0.00011664,2]
[403186987,1769257191635,-217.37327442,0.00011664,2]
[403186988,1769257194791,-231.04,0.00011664,2]
[403186989,1769257201204,300.0,0.00011663,2]
[403186990,1769257201247,1200.0,0.00011663,2]
[403186991,1769257201284,300.0,0.00011663,2]
[403186992,1769257215585,442.66901596,0.00011578,2]
[403186993,1769257232581,500.0,0.00011663,2]
[403186994,1769257232633,166.22950483,0.00011663,2]
[403186995,1769257232789,554.2345437,0.00011663,2]
[403186996,1769257232847,243.30609835,0.00011663,2]
[403186997,1769257233468,-183.95516542,0.00011664,2]
[403186998,1769257235701,-66.04483458,0.00011664,2]
[403186999,1769257235731,-245.0,0.00011664,2]
[403187000,1769257235758,-720.85,0.00011664,2]
[403187001,1769257235838,1390.39786992,0.00011663,2]
[403187002,1769257235899,1390.39786992,0.00011663,2]
[403187003,1769257235935,453.0,0.00011663,2]
[403187004,1769257235982,1390.39786992,0.00011663,2]
[403187005,1769257236033,1390.39786992,0.00011663,2]
[403187006,1769257236078,1390.39786992,0.00011663,2]
[403187007,1769257236151,531.23098124,0.00011663,2]
[403187008,1769257236176,859.16688868,0.00011663,2]
[403187009,1769257236229,1390.39786992,0.00011663,2]
[403187010,1769257236272,1390.39786992,0.00011663,2]
[403187011,1769257236316,1390.39786992,0.00011663,2]
[403187012,1769257236362,1390.39786992,0.00011663,2]
[403187013,1769257236410,1390.39786992,0.00011663,2]
[403187014,1769257236454,1390.39786992,0.00011663,2]
[403187015,1769257236508,798.4558918,0.00011663,2]
[403187016,1769257236533,591.94197812,0.00011663,2]
[403187017,1769257236581,1390.39786992,0.00011663,2]
[403187018,1769257236641,1390.39786992,0.00011663,2]
[403187019,1769257236689,1390.39786992,0.00011663,2]
[403187020,1769257236763,1390.39786992,0.00011663,2]
[403187021,1769257236831,1390.39786992,0.00011663,2]
[403187022,1769257236904,1390.39786992,0.00011663,2]
[403187023,1769257236954,1065.68080236,0.00011663,2]
[403187024,1769257236979,324.71706756,0.00011663,2]
[403187025,1769257237026,1390.39786992,0.00011663,2]
[403187026,1769257237067,1390.39786992,0.00011663,2]
[403187027,1769257237135,1390.39786992,0.00011663,2]
[403187028,1769257237186,1390.39786992,0.00011663,2]
[403187029,1769257237230,1390.39786992,0.00011663,2]
[403187030,1769257237279,1390.39786992,0.00011663,2]
[403187031,1769257237324,1332.90571292,0.00011663,2]
[403187032,1769257237350,57.492157,0.00011663,2]
[403187033,1769257237394,1390.39786992,0.00011663,2]
[403187034,1769257237436,1390.39786992,0.00011663,2]
[403187035,1769257237478,1390.39786992,0.00011663,2]
[403187036,1769257237542,1239.07790428,0.00011663,2]
[403187037,1769257237570,151.31996564,0.00011663,2]
[403187038,1769257237613,1390.39786992,0.00011663,2]
[403187039,1769257237667,1390.39786992,0.00011663,2]
[403187040,1769257237714,1390.39786992,0.00011663,2]
[403187041,1769257237753,1390.39786992,0.00011663,2]
[403187042,1769257237800,1390.39786992,0.00011663,2]
[403187043,1769257237865,1390.39786992,0.00011663,2]
[403187044,1769257237910,1390.39786992,0.00011663,2]
[403187045,1769257237956,1390.39786992,0.00011663,2]
[403187046,1769257237993,1390.39786992,0.00011663,2]
[403187047,1769257238045,267.22491056,0.00011663,2]
[403187048,1769257238076,1123.17295936,0.00011663,2]
[403187049,1769257238114,1390.39786992,0.00011663,2]
[403187050,1769257238156,1390.39786992,0.00011663,2]
[403187051,1769257238188,-182.64501787,0.00011665,2]
[403187052,1769257238232,1390.39786992,0.00011663,2]
[403187053,1769257238288,1390.39786992,0.00011663,2]
[403187054,1769257238614,1390.39786992,0.00011663,2]
[403187055,1769257238660,1390.39786992,0.00011663,2]
[403187056,1769257238699,534.44982112,0.00011663,2]
[403187057,1769257238724,855.9480488,0.00011663,2]
[403187058,1769257238766,1390.39786992,0.00011663,2]
[403187059,1769257238817,1390.39786992,0.00011663,2]
[403187060,1769257238859,1390.39786992,0.00011663,2]
[403187061,1769257238923,1390.39786992,0.00011663,2]
[403187062,1769257238967,1390.39786992,0.00011663,2]
[403187063,1769257239008,1390.39786992,0.00011663,2]
[403187064,1769257239051,801.67473168,0.00011663,2]
[403187065,1769257239077,588.72313824,0.00011663,2]
[403187066,1769257239118,1390.39786992,0.00011663,2]
[403187067,1769257239166,1390.39786992,0.00011663,2]
[403187068,1769257239218,1390.39786992,0.00011663,2]
[403187069,1769257239257,1390.39786992,0.00011663,2]
[403187070,1769257239341,1390.39786992,0.00011663,2]
[403187071,1769257239382,1390.39786992,0.00011663,2]
[403187072,1769257239425,1068.89964224,0.00011663,2]
[403187073,1769257239452,321.49822768,0.00011663,2]
[403187074,1769257239498,1390.39786992,0.00011663,2]
[403187075,1769257239561,1390.39786992,0.00011663,2]
[403187076,1769257239607,1390.39786992,0.00011663,2]
[403187077,1769257239860,-216.00725695,0.00011665,2]
[403187078,1769257241459,-272.08313769,0.00011665,2]
[403187079,1769257250997,155.41325979,0.00011578,2]
[403187080,1769257261379,300.0,0.00011664,2]
[403187081,1769257262423,150.0,0.00011664,2]
[403187082,1769257292482,3236.828,0.00011444,2]
[403187083,1769257292590,254.412,0.00011444,2]
[403187084,1769257312629,1410.66490277,0.00011578,2]
[403187085,1769257312654,780.12289723,0.00011578,2]
[403187086,1769257321582,300.0,0.00011664,2]
[403187087,1769257355861,295.11267732,0.00011578,2]
[403187088,1769257381299,300.0,0.00011664,2]
[403187089,1769257396834,195.79925831,0.00011578,2]
[403187090,1769257401153,1200.0,0.00011664,2]
[403187091,1769257441307,300.0,0.00011664,2]
[403187092,1769257442340,150.0,0.00011664,2]
[403187093,1769257446159,333.52516744,0.00011664,2]
[403187094,1769257451336,2930.31,0.00011665,2]
[403187095,1769257463355,883.42792904,0.00011664,2]
[403187096,1769257463394,883.42792904,0.00011664,2]
[403187097,1769257463438,883.42792904,0.00011664,2]
[403187098,1769257463478,564.85621258,0.00011664,2]
[403187099,1769257463504,318.57171646,0.00011664,2]
[403187100,1769257463546,883.42792904,0.00011664,2]
[403187101,1769257463585,883.42792904,0.00011664,2]
[403187102,1769257463623,883.42792904,0.00011664,2]
[403187103,1769257463661,883.42792904,0.00011664,2]
[403187104,1769257463967,883.42792904,0.00011664,2]
[403187105,1769257464011,883.42792904,0.00011664,2]
[403187106,1769257464056,883.42792904,0.00011664,2]
[403187107,1769257464095,883.42792904,0.00011664,2]
[403187108,1769257464140,883.42792904,0.00011664,2]
[403187109,1769257464179,883.42792904,0.00011664,2]
[403187110,1769257464223,847.15899314,0.00011664,2]
[403187111,1769257464247,36.2689359,0.00011664,2]
[403187112,1769257464295,883.42792904,0.00011664,2]
[403187113,1769257464340,883.42792904,0.00011664,2]
[403187114,1769257464379,883.42792904,0.00011664,2]
[403187115,1769257464423,883.42792904,0.00011664,2]
[403187116,1769257464466,883.42792904,0.00011664,2]
[403187117,1769257464506,883.42792904,0.00011664,2]
[403187118,1769257464550,883.42792904,0.00011664,2]
[403187119,1769257464590,883.42792904,0.00011664,2]
[403187120,1769257464631,883.42792904,0.00011664,2]
[403187121,1769257464671,883.42792904,0.00011664,2]
[403187122,1769257464716,883.42792904,0.00011664,2]
[403187123,1769257464772,246.03384466,0.00011664,2]
[403187124,1769257464796,637.39408438,0.00011664,2]
[403187125,1769257464836,883.42792904,0.00011664,2]
[403187126,1769257464875,883.42792904,0.00011664,2]
[403187127,1769257464913,883.42792904,0.00011664,2]
[403187128,1769257464951,883.42792904,0.00011664,2]
[403187129,1769257465121,883.42792904,0.00011664,2]
[403187130,1769257465176,883.42792904,0.00011664,2]
[403187131,1769257465230,883.42792904,0.00011664,2]
[403187132,1769257465270,883.42792904,0.00011664,2]
[403187133,1769257465318,883.42792904,0.00011664,2]
[403187134,1769257465357,883.42792904,0.00011664,2]
[403187135,1769257465397,528.33662522,0.00011664,2]
[403187136,1769257465425,355.09130382,0.00011664,2]
[403187137,1769257465485,883.42792904,0.00011664,2]
[403187138,1769257465527,883.42792904,0.00011664,2]
[403187139,1769257465575,883.42792904,0.00011664,2]
[403187140,1769257465614,883.42792904,0.00011664,2]
[403187141,1769257465661,883.42792904,0.00011664,2]
[403187142,1769257465717,883.42792904,0.00011664,2]
[403187143,1769257465759,883.42792904,0.00011664,2]
[403187144,1769257465802,883.42792904,0.00011664,2]
[403187145,1769257465849,883.42792904,0.00011664,2]
[403187146,1769257465887,883.42792904,0.00011664,2]
[403187147,1769257465932,810.63940578,0.00011664,2]
[403187148,1769257465956,72.78852326,0.00011664,2]
[403187149,1769257466000,883.42792904,0.00011664,2]
[403187150,1769257466054,883.42792904,0.00011664,2]
[403187151,1769257466094,883.42792904,0.00011664,2]
[403187152,1769257466139,883.42792904,0.00011664,2]
[403187153,1769257466188,883.42792904,0.00011664,2]
[403187154,1769257466229,883.42792904,0.00011664,2]
[403187155,1769257466274,883.42792904,0.00011664,2]